[Event "Open NK Rapid 2025"]
[Site "Helmond, Netherlands"]
[Date "2025.05.03"]
[Round "8.21"]
[White "Van Ravensteijn, Antal"]
[Black "Wilming, Auke"]
[Result "1-0"]
[TimeControl "15+5"]
[WhiteFideId "1060759"]
[BlackFideId "40101096"]
[WhiteElo "2048"]
[BlackElo "1962"]

1. Nf3 {[%clk 00:15:08]} {[%emt 00:00:02]} Nf6 {[%clk 00:15:09]} {[%emt
00:00:02]} 2. g3 {[%clk 00:15:11]} {[%emt 00:00:02]} g6 {[%clk 00:15:11]}
{[%emt 00:00:03]} 3. Bg2 {[%clk 00:15:15]} {[%emt 00:00:02]} Bg7 {[%clk
00:15:15]} {[%emt 00:00:01]} 4. O-O {[%clk 00:15:17]} {[%emt 00:00:02]} O-O
{[%clk 00:15:17]} {[%emt 00:00:02]} 5. c4 {[%clk 00:15:21]} {[%emt 00:00:02]}
c6 {[%clk 00:15:20]} {[%emt 00:00:03]} 6. d4 {[%clk 00:15:02]} {[%emt
00:00:24]} d5 {[%clk 00:15:23]} {[%emt 00:00:02]} 7. b3 {[%clk 00:15:06]} Bf5
{[%clk 00:15:07]} {[%emt 00:00:19]} 8. Nc3 {[%clk 00:15:07]} {[%emt 00:00:05]}
Nbd7 {[%clk 00:13:54]} {[%emt 00:01:19]} 9. Bb2 {[%clk 00:15:01]} {[%emt
00:00:10]} Rc8 {[%clk 00:13:35]} {[%emt 00:00:24]} 10. Rc1 {[%clk 00:14:38]}
{[%emt 00:00:28]} Re8 {[%clk 00:12:12]} {[%emt 00:01:29]} 11. Re1 {[%clk
00:13:50]} {[%emt 00:00:54]} Ne4 {[%clk 00:11:28]} {[%emt 00:00:48]} 12. e3
{[%clk 00:13:04]} {[%emt 00:00:51]} dxc4 {[%clk 00:10:49]} {[%emt 00:00:43]} 13.
bxc4 {[%clk 00:12:57]} {[%emt 00:00:13]} Qb6 {[%clk 00:10:27]} {[%emt
00:00:27]} 14. Na4 {[%clk 00:12:13]} {[%emt 00:00:49]} Qa6 {[%clk 00:10:12]}
{[%emt 00:00:20]} 15. Nh4 {[%clk 00:11:47]} {[%emt 00:00:31]} Nd6 {[%clk
00:09:05]} {[%emt 00:01:12]} 16. c5 {[%clk 00:11:25]} {[%emt 00:00:27]} Nc4
{[%clk 00:08:36]} {[%emt 00:00:34]} 17. Nxf5 {[%clk 00:10:25]} {[%emt
00:01:05]} gxf5 {[%clk 00:08:38]} {[%emt 00:00:03]} 18. Bf1 {[%clk 00:09:09]}
{[%emt 00:01:21]} Nxb2 {[%clk 00:08:22]} {[%emt 00:00:20]} 19. Nxb2 {[%clk
00:09:03]} {[%emt 00:00:13]} Qa5 {[%clk 00:07:23]} {[%emt 00:01:03]} 20. Nc4
{[%clk 00:08:42]} {[%emt 00:00:26]} Qc7 {[%clk 00:07:25]} {[%emt 00:00:02]} 21.
Bd3 {[%clk 00:07:52]} {[%emt 00:00:56]} e6 {[%clk 00:05:19]} {[%emt 00:02:12]}
22. Nd6 {[%clk 00:07:51]} {[%emt 00:00:06]} Nf6 {[%clk 00:05:11]} {[%emt
00:00:12]} 23. Nxc8 {[%clk 00:07:20]} {[%emt 00:00:35]} Rxc8 {[%clk 00:05:14]}
{[%emt 00:00:03]} 24. Rb1 {[%clk 00:07:07]} {[%emt 00:00:18]} b6 {[%clk
00:04:52]} {[%emt 00:00:28]} 25. Ba6 {[%clk 00:06:56]} {[%emt 00:00:16]} Rd8
{[%clk 00:04:54]} {[%emt 00:00:02]} 26. cxb6 {[%clk 00:06:50]} {[%emt
00:00:11]} axb6 {[%clk 00:04:58]} {[%emt 00:00:01]} 27. Qb3 {[%clk 00:06:38]}
{[%emt 00:00:17]} b5 {[%clk 00:04:20]} {[%emt 00:00:43]} 28. a4 {[%clk
00:06:42]} {[%emt 00:00:02]} Ne4 {[%clk 00:03:58]} {[%emt 00:00:27]} 29. Re2
{[%clk 00:06:12]} {[%emt 00:00:34]} bxa4 {[%clk 00:03:28]} {[%emt 00:00:35]} 30.
Qc4 {[%clk 00:04:48]} {[%emt 00:01:30]} Qa5 {[%clk 00:03:02]} {[%emt 00:00:31]}
31. Rc2 {[%clk 00:04:25]} {[%emt 00:00:27]} Nd2 {[%clk 00:02:16]} {[%emt
00:00:51]} 32. Rxd2 {[%clk 00:03:03]} {[%emt 00:01:27]} Qxd2 {[%clk 00:02:19]}
{[%emt 00:00:02]} 33. Qxa4 {[%clk 00:03:01]} {[%emt 00:00:07]} Qc3 {[%clk
00:01:33]} {[%emt 00:00:51]} 34. Bb7 {[%clk 00:02:35]} {[%emt 00:00:31]} c5
{[%clk 00:01:23]} {[%emt 00:00:14]} 35. dxc5 {[%clk 00:02:26]} {[%emt
00:00:15]} Qxc5 {[%clk 00:01:27]} {[%emt 00:00:01]} 36. Rb5 {[%clk 00:01:53]}
{[%emt 00:00:39]} Qc7 {[%clk 00:01:21]} {[%emt 00:00:10]} 37. Bf3 {[%clk
00:01:33]} {[%emt 00:00:24]} Rb8 {[%clk 00:01:15]} {[%emt 00:00:11]} 38. Rxb8+
{[%clk 00:01:21]} {[%emt 00:00:18]} Qxb8 {[%clk 00:01:19]} {[%emt 00:00:02]} 39.
Qd7 {[%clk 00:01:18]} {[%emt 00:00:07]} Bf6 {[%clk 00:00:56]} {[%emt 00:00:28]}
40. Bh5 {[%clk 00:01:13]} {[%emt 00:00:10]} Qf8 {[%clk 00:00:57]} {[%emt
00:00:04]} 41. Kg2 {[%clk 00:01:15]} {[%emt 00:00:03]} Qe7 {[%clk 00:00:46]}
{[%emt 00:00:16]} 42. Qc8+ {[%clk 00:00:58]} {[%emt 00:00:22]} Qd8 {[%clk
00:00:49]} {[%emt 00:00:01]} 43. Qb7 {[%clk 00:00:58]} {[%emt 00:00:05]} Qe7
{[%clk 00:00:52]} {[%emt 00:00:02]} 44. Qa8+ {[%clk 00:00:58]} {[%emt
00:00:06]} Qf8 {[%clk 00:00:52]} {[%emt 00:00:05]} 45. Qc6 {[%clk 00:00:58]}
{[%emt 00:00:05]} Kg7 {[%clk 00:00:40]} {[%emt 00:00:17]} 46. e4 {[%clk
00:00:44]} {[%emt 00:00:20]} fxe4 {[%clk 00:00:40]} {[%emt 00:00:05]} 47. Qxe4
{[%clk 00:00:48]} {[%emt 00:00:01]} Qc5 {[%clk 00:00:38]} {[%emt 00:00:07]} 48.
Bf3 {[%clk 00:00:43]} {[%emt 00:00:09]} Qe5 {[%clk 00:00:36]} {[%emt 00:00:07]}
49. Qd3 {[%clk 00:00:46]} {[%emt 00:00:03]} Qd4 {[%clk 00:00:32]} {[%emt
00:00:08]} 50. Qb5 {[%clk 00:00:36]} {[%emt 00:00:15]} Qb2 {[%clk 00:00:31]}
{[%emt 00:00:06]} 51. Qh5 {[%clk 00:00:33]} {[%emt 00:00:09]} Qe5 {[%clk
00:00:24]} {[%emt 00:00:12]} 52. Qg4+ {[%clk 00:00:36]} {[%emt 00:00:01]} Qg5
{[%clk 00:00:28]} {[%emt 00:00:02]} 53. Qc4 {[%clk 00:00:41]} Qe5 {[%clk
00:00:23]} {[%emt 00:00:09]} 54. h4 {[%clk 00:00:33]} {[%emt 00:00:12]} Qd4
{[%clk 00:00:26]} {[%emt 00:00:03]} 55. Qc6 {[%clk 00:00:30]} {[%emt 00:00:08]}
Qc3 {[%clk 00:00:28]} {[%emt 00:00:03]} 56. Qe4 {[%clk 00:00:34]} {[%emt
00:00:02]} Qe5 {[%clk 00:00:31]} {[%emt 00:00:02]} 57. Qg4+ {[%clk 00:00:37]}
{[%emt 00:00:01]} Kh8 {[%clk 00:00:11]} {[%emt 00:00:27]} 58. Be4 {[%clk
00:00:40]} Bg7 {[%clk 00:00:07]} {[%emt 00:00:10]} 59. Kh2 {[%clk 00:00:21]}
{[%emt 00:00:24]} f5 {[%emt 00:00:16]} 60. Qg5 {[%clk 00:15:05]} {[%emt
00:00:02]} 1-0

[Event "Open NK Rapid 2025"]
[Site "Helmond, Netherlands"]
[Date "2025.05.03"]
[Round "8.22"]
[White "Margaryan, Artur"]
[Black "Moskalets, Sofiia"]
[Result "1-0"]
[TimeControl "15+5"]
[WhiteFideId "13304348"]
[BlackFideId "34144293"]
[WhiteElo "2100"]
[BlackElo "1938"]

1. d4 {[%clk 00:15:09]} d5 {[%clk 00:15:08]} {[%emt 00:00:02]} 2. c4 {[%clk
00:15:14]} {[%emt 00:00:01]} e6 {[%clk 00:15:12]} 3. Nc3 {[%clk 00:15:18]} c5
{[%clk 00:15:16]} 4. cxd5 {[%clk 00:15:21]} {[%emt 00:00:02]} exd5 {[%clk
00:15:21]} 5. Nf3 {[%clk 00:15:25]} {[%emt 00:00:01]} Nc6 {[%clk 00:15:25]}
{[%emt 00:00:04]} 6. g3 {[%clk 00:15:29]} Nf6 {[%clk 00:15:29]} 7. Bg2 {[%clk
00:15:34]} cxd4 {[%clk 00:15:33]} 8. Nxd4 {[%clk 00:15:36]} {[%emt 00:00:03]}
Bc5 {[%clk 00:15:36]} {[%emt 00:00:01]} 9. Nb3 {[%clk 00:14:26]} {[%emt
00:01:16]} Bb6 {[%clk 00:15:39]} {[%emt 00:00:02]} 10. O-O {[%clk 00:12:38]}
{[%emt 00:01:52]} Be6 {[%clk 00:15:40]} {[%emt 00:00:05]} 11. Bg5 {[%clk
00:12:30]} {[%emt 00:00:12]} O-O {[%clk 00:15:02]} {[%emt 00:00:43]} 12. Qd2
{[%clk 00:09:22]} {[%emt 00:03:13]} d4 {[%clk 00:10:14]} {[%emt 00:04:53]} 13.
Bxf6 {[%clk 00:09:13]} {[%emt 00:00:14]} Qxf6 {[%clk 00:10:11]} {[%emt
00:00:08]} 14. Nd5 {[%clk 00:08:18]} {[%emt 00:01:01]} Bxd5 {[%clk 00:09:45]}
{[%emt 00:00:30]} 15. Bxd5 {[%clk 00:08:21]} {[%emt 00:00:02]} Rad8 {[%clk
00:09:29]} {[%emt 00:00:21]} 16. Bg2 {[%clk 00:07:31]} {[%emt 00:00:55]} Rfe8
{[%clk 00:09:11]} {[%emt 00:00:24]} 17. Nc1 {[%clk 00:07:28]} {[%emt 00:00:08]}
Qe7 {[%clk 00:08:44]} {[%emt 00:00:32]} 18. a3 {[%clk 00:07:19]} {[%emt
00:00:14]} Ne5 {[%clk 00:08:17]} {[%emt 00:00:31]} 19. b3 {[%clk 00:06:38]}
{[%emt 00:00:47]} Nc6 {[%clk 00:07:37]} {[%emt 00:00:44]} 20. Ra2 {[%clk
00:06:20]} {[%emt 00:00:24]} h6 {[%clk 00:07:17]} {[%emt 00:00:25]} 21. b4
{[%clk 00:06:14]} {[%emt 00:00:11]} Ne5 {[%clk 00:06:33]} {[%emt 00:00:48]} 22.
Rc2 {[%clk 00:06:14]} {[%emt 00:00:06]} Rc8 {[%clk 00:06:31]} {[%emt 00:00:07]}
23. Bh3 {[%clk 00:06:17]} Rxc2 {[%clk 00:06:23]} {[%emt 00:00:13]} 24. Qxc2
{[%clk 00:06:21]} {[%emt 00:00:01]} a5 {[%clk 00:05:55]} {[%emt 00:00:34]} 25.
Qa4 {[%clk 00:05:36]} {[%emt 00:00:50]} axb4 {[%clk 00:05:41]} {[%emt
00:00:19]} 26. axb4 {[%clk 00:05:39]} {[%emt 00:00:01]} Nc6 {[%clk 00:05:03]}
{[%emt 00:00:43]} 27. Bg2 {[%clk 00:04:00]} {[%emt 00:01:44]} Rc8 {[%clk
00:04:17]} {[%emt 00:00:51]} 28. Qb5 {[%clk 00:03:14]} {[%emt 00:00:52]} Ba7
{[%clk 00:03:47]} {[%emt 00:00:35]} 29. Bf3 {[%clk 00:02:44]} {[%emt 00:00:35]}
Nxb4 {[%clk 00:02:20]} {[%emt 00:01:32]} 30. Qxb7 {[%clk 00:02:42]} {[%emt
00:00:07]} Qxb7 {[%clk 00:01:45]} {[%emt 00:00:40]} 31. Bxb7 {[%clk 00:02:45]}
{[%emt 00:00:02]} Rc3 {[%clk 00:01:32]} {[%emt 00:00:18]} 32. Be4 {[%clk
00:02:43]} {[%emt 00:00:06]} g6 {[%clk 00:01:14]} {[%emt 00:00:23]} 33. Kg2
{[%clk 00:02:40]} {[%emt 00:00:08]} f5 {[%clk 00:01:15]} {[%emt 00:00:04]} 34.
Bd3 {[%clk 00:02:44]} {[%emt 00:00:02]} Kf7 {[%clk 00:00:49]} {[%emt 00:00:30]}
35. h4 {[%clk 00:02:47]} {[%emt 00:00:02]} Kf6 {[%clk 00:00:53]} {[%emt
00:00:02]} 36. Rd1 {[%clk 00:02:13]} {[%emt 00:00:38]} Ra3 {[%clk 00:00:44]}
{[%emt 00:00:14]} 37. Bc4 {[%clk 00:01:45]} {[%emt 00:00:33]} Rc3 {[%clk
00:00:33]} {[%emt 00:00:16]} 38. Bb5 {[%clk 00:01:48]} {[%emt 00:00:02]} Rc5
{[%clk 00:00:29]} {[%emt 00:00:09]} 39. Ba4 {[%clk 00:01:42]} {[%emt 00:00:12]}
Ra5 {[%clk 00:00:28]} {[%emt 00:00:06]} 40. Bb3 {[%clk 00:01:45]} {[%emt
00:00:01]} Ra3 {[%clk 00:00:26]} {[%emt 00:00:07]} 41. Bc4 {[%clk 00:01:33]}
{[%emt 00:00:18]} Ra1 {[%clk 00:00:27]} {[%emt 00:00:04]} 42. Rf1 {[%clk
00:01:30]} {[%emt 00:00:06]} Ra3 {[%clk 00:00:10]} {[%emt 00:00:23]} 43. Nb3
{[%clk 00:01:31]} {[%emt 00:00:04]} Nc6 {[%clk 00:00:09]} {[%emt 00:00:07]} 44.
Rb1 {[%clk 00:01:27]} {[%emt 00:00:09]} Ne5 {[%clk 00:00:11]} {[%emt 00:00:03]}
45. Bb5 {[%clk 00:01:21]} {[%emt 00:00:11]} Ra2 {[%clk 00:00:11]} {[%emt
00:00:04]} 46. Nc1 {[%clk 00:01:20]} {[%emt 00:00:06]} Rc2 {[%clk 00:00:11]}
{[%emt 00:00:06]} 47. Kf1 {[%clk 00:01:17]} {[%emt 00:00:08]} Ng4 {[%clk
00:00:12]} {[%emt 00:00:04]} 48. Nd3 {[%clk 00:01:07]} {[%emt 00:00:14]} Rc3
{[%clk 00:00:08]} {[%emt 00:00:10]} 49. Ra1 {[%clk 00:01:01]} {[%emt 00:00:10]}
Rc7 {[%clk 00:00:10]} {[%emt 00:00:03]} 50. Ra6+ {[%clk 00:01:02]} {[%emt
00:00:04]} Kg7 {[%clk 00:00:10]} {[%emt 00:00:05]} 51. Kg2 {[%clk 00:00:58]}
{[%emt 00:00:09]} Re7 {[%clk 00:00:09]} {[%emt 00:00:07]} 52. Nf4 {[%clk
00:00:59]} {[%emt 00:00:04]} Bb8 {[%clk 00:00:07]} {[%emt 00:00:07]} 53. Ne6+
{[%clk 00:00:40]} {[%emt 00:00:23]} Kh7 {[%clk 00:00:07]} {[%emt 00:00:05]} 54.
Nxd4 {[%clk 00:00:42]} {[%emt 00:00:03]} Be5 {[%clk 00:00:09]} {[%emt
00:00:03]} 55. Nc6 {[%clk 00:00:41]} {[%emt 00:00:07]} Re8 {[%clk 00:00:08]}
{[%emt 00:00:06]} 56. e3 {[%clk 00:00:40]} {[%emt 00:00:05]} Bg7 {[%clk
00:00:09]} {[%emt 00:00:04]} 57. Ra7 {[%clk 00:00:40]} {[%emt 00:00:06]} Rc8
{[%clk 00:00:10]} {[%emt 00:00:04]} 58. Rb7 {[%clk 00:00:38]} {[%emt 00:00:06]}
h5 {[%clk 00:00:09]} {[%emt 00:00:06]} 59. Ra7 {[%clk 00:00:26]} {[%emt
00:00:18]} Nf6 {[%clk 00:00:10]} {[%emt 00:00:04]} 60. Ra2 {[%clk 00:00:27]}
{[%emt 00:00:04]} Ng4 {[%clk 00:00:12]} {[%emt 00:00:03]} 61. Nd4 {[%clk
00:00:14]} {[%emt 00:00:18]} Rb8 {[%clk 00:00:12]} {[%emt 00:00:04]} 62. Be2
{[%clk 00:00:17]} {[%emt 00:00:02]} Rb7 {[%clk 00:00:09]} {[%emt 00:00:09]} 63.
Ne6 {[%clk 00:00:15]} {[%emt 00:00:07]} Bf6 {[%clk 00:00:08]} {[%emt 00:00:05]}
64. Bxg4 {[%clk 00:00:18]} {[%emt 00:00:02]} hxg4 {[%clk 00:00:10]} {[%emt
00:00:03]} 65. Rc2 {[%clk 00:00:22]} {[%emt 00:00:02]} Re7 {[%clk 00:00:10]}
{[%emt 00:00:04]} 66. Nf4 {[%clk 00:00:26]} {[%emt 00:00:01]} Be5 {[%clk
00:00:12]} {[%emt 00:00:04]} 67. Ne2 {[%clk 00:00:27]} {[%emt 00:00:04]} Rd7
{[%clk 00:00:14]} {[%emt 00:00:03]} 68. Nc1 {[%clk 00:00:28]} {[%emt 00:00:03]}
Rc7 {[%clk 00:00:15]} {[%emt 00:00:04]} 69. Rxc7+ {[%clk 00:00:30]} {[%emt
00:00:04]} Bxc7 {[%clk 00:00:19]} 70. Nb3 {[%clk 00:00:23]} {[%emt 00:00:12]}
Bb6 {[%clk 00:00:21]} {[%emt 00:00:02]} 71. Nd4 {[%clk 00:00:25]} {[%emt
00:00:03]} Kg7 {[%clk 00:00:25]} {[%emt 00:00:02]} 72. Ne6+ {[%clk 00:00:29]}
Kf6 {[%clk 00:00:28]} {[%emt 00:00:01]} 73. Nf4 {[%clk 00:00:33]} {[%emt
00:00:02]} Bc5 {[%clk 00:00:26]} {[%emt 00:00:07]} 74. Kf1 {[%clk 00:00:36]}
{[%emt 00:00:01]} Bd6 {[%clk 00:00:28]} {[%emt 00:00:03]} 75. Nd3 {[%clk
00:00:40]} {[%emt 00:00:01]} Bc7 {[%clk 00:00:25]} {[%emt 00:00:08]} 76. Ke2
{[%clk 00:00:44]} {[%emt 00:00:01]} Bd6 {[%clk 00:00:28]} {[%emt 00:00:02]} 77.
Kd2 {[%clk 00:00:42]} {[%emt 00:00:08]} Ke6 {[%clk 00:00:21]} {[%emt 00:00:12]}
78. Nf4+ {[%clk 00:00:37]} {[%emt 00:00:10]} Kf6 {[%clk 00:00:17]} {[%emt
00:00:08]} 79. Kd3 {[%clk 00:00:41]} {[%emt 00:00:02]} Kg7 {[%clk 00:00:11]}
{[%emt 00:00:11]} 80. Kc4 {[%clk 00:00:43]} {[%emt 00:00:03]} Be5 {[%clk
00:00:12]} {[%emt 00:00:04]} 81. Kd5 {[%clk 00:00:40]} {[%emt 00:00:08]} Bc3
{[%clk 00:00:15]} {[%emt 00:00:02]} 82. e4 {[%clk 00:00:38]} {[%emt 00:00:07]}
Kf6 {[%clk 00:00:07]} {[%emt 00:00:13]} 83. Nd3 {[%clk 00:00:38]} {[%emt
00:00:05]} fxe4 {[%clk 00:00:06]} {[%emt 00:00:05]} 84. Kxe4 {[%clk 00:00:41]}
{[%emt 00:00:02]} Bd2 {[%clk 00:00:11]} 85. Nf4 {[%clk 00:00:40]} {[%emt
00:00:07]} Be1 {[%clk 00:00:12]} {[%emt 00:00:04]} 86. Ke3 {[%clk 00:00:40]}
{[%emt 00:00:05]} Kf5 {[%clk 00:00:14]} {[%emt 00:00:03]} 87. Nd3 {[%clk
00:00:43]} {[%emt 00:00:02]} Bc3 {[%clk 00:00:16]} {[%emt 00:00:02]} 88. Nc1
{[%clk 00:00:42]} {[%emt 00:00:06]} Bg7 {[%clk 00:00:17]} {[%emt 00:00:04]} 89.
Ne2 {[%clk 00:00:46]} {[%emt 00:00:01]} Bh6+ {[%clk 00:00:16]} {[%emt
00:00:06]} 90. Kd3 {[%clk 00:00:50]} {[%emt 00:00:01]} Ke5 {[%clk 00:00:10]}
{[%emt 00:00:11]} 91. Nc3 {[%clk 00:00:46]} {[%emt 00:00:10]} Kf5 {[%clk
00:00:11]} {[%emt 00:00:03]} 92. Nd5 {[%clk 00:00:45]} {[%emt 00:00:06]} g5
{[%clk 00:00:06]} {[%emt 00:00:11]} 93. h5 {[%clk 00:00:41]} {[%emt 00:00:08]}
Bf8 {[%clk 00:00:07]} {[%emt 00:00:04]} 94. Ne3+ {[%clk 00:00:45]} Kf6 {[%clk
00:00:11]} {[%emt 00:00:01]} 95. Nxg4+ {[%clk 00:00:49]} {[%emt 00:00:02]} Kf5
{[%clk 00:00:14]} {[%emt 00:00:02]} 96. Ne3+ {[%clk 00:00:53]} {[%emt
00:00:01]} Kf6 {[%clk 00:00:18]} {[%emt 00:00:01]} 97. Ke4 {[%clk 00:00:55]}
{[%emt 00:00:02]} Bc5 {[%clk 00:00:21]} {[%emt 00:00:03]} 98. g4 {[%clk
00:00:58]} {[%emt 00:00:01]} Ba7 {[%clk 00:00:24]} {[%emt 00:00:03]} 99. f3
{[%clk 00:01:01]} {[%emt 00:00:01]} Bb8 {[%clk 00:00:23]} {[%emt 00:00:07]} 100.
Nd5+ {[%clk 00:01:05]} {[%emt 00:00:01]} Kg7 {[%clk 00:00:26]} {[%emt
00:00:01]} 101. Kf5 {[%clk 00:01:08]} {[%emt 00:00:02]} Kh6 {[%clk 00:00:31]}
{[%emt 00:00:01]} 102. Nc3 {[%clk 00:01:08]} {[%emt 00:00:05]} Bf4 {[%clk
00:00:30]} {[%emt 00:00:05]} 103. Ne4 {[%clk 00:01:12]} {[%emt 00:00:02]} Be3
{[%clk 00:00:33]} {[%emt 00:00:02]} 104. Nd6 {[%clk 00:01:15]} {[%emt
00:00:01]} Kg7 {[%clk 00:00:32]} {[%emt 00:00:06]} 105. Nc4 {[%clk 00:01:09]}
{[%emt 00:00:12]} Bc1 {[%clk 00:00:32]} {[%emt 00:00:04]} 106. Nd6 {[%clk
00:01:04]} {[%emt 00:00:10]} Bf4 {[%clk 00:00:29]} {[%emt 00:00:07]} 107. Ke6
{[%clk 00:01:08]} {[%emt 00:00:02]} Bc1 {[%clk 00:00:26]} {[%emt 00:00:08]} 108.
Nf5+ {[%clk 00:01:12]} Kh7 {[%clk 00:00:29]} {[%emt 00:00:02]} 109. Kf7 {[%clk
00:01:16]} {[%emt 00:00:01]} Bd2 {[%clk 00:00:30]} {[%emt 00:00:05]} 110. Ng3
{[%clk 00:01:03]} {[%emt 00:00:17]} Bf4 {[%clk 00:00:29]} {[%emt 00:00:06]} 111.
Ne2 {[%clk 00:01:05]} {[%emt 00:00:03]} Be3 {[%clk 00:00:32]} {[%emt 00:00:03]}
112. Kf6 {[%clk 00:01:09]} Kh6 {[%clk 00:00:26]} {[%emt 00:00:11]} 113. Kf5
{[%clk 00:01:12]} {[%emt 00:00:01]} Bd2 {[%clk 00:00:26]} {[%emt 00:00:06]} 114.
f4 {[%clk 00:01:16]} {[%emt 00:00:01]} gxf4 {[%clk 00:00:20]} {[%emt 00:00:10]}
115. Nxf4 {[%clk 00:01:20]} {[%emt 00:00:01]} Bc1 {[%clk 00:00:21]} {[%emt
00:00:05]} 116. g5+ {[%clk 00:01:23]} {[%emt 00:00:01]} Kg7 {[%clk 00:00:23]}
{[%emt 00:00:02]} 117. Ne6+ {[%clk 00:01:20]} {[%emt 00:00:09]} Kg8 {[%clk
00:00:24]} {[%emt 00:00:04]} 118. Kg6 {[%clk 00:00:41]} {[%emt 00:00:44]} Bd2
{[%clk 00:00:21]} {[%emt 00:00:08]} 119. h6 {[%clk 00:00:44]} {[%emt 00:00:02]}
Bc3 {[%clk 00:00:20]} {[%emt 00:00:06]} 120. Nf4 {[%clk 00:00:34]} {[%emt
00:00:15]} Bh8 {[%clk 00:00:13]} {[%emt 00:00:12]} 121. Nd5 {[%clk 00:00:33]}
{[%emt 00:00:06]} Be5 {[%clk 00:00:11]} {[%emt 00:00:07]} 122. Nf6+ {[%clk
00:00:35]} {[%emt 00:00:03]} Kh8 {[%clk 00:00:14]} {[%emt 00:00:02]} 123. Kh5
{[%clk 00:00:24]} {[%emt 00:00:16]} Bd4 {[%clk 00:00:14]} {[%emt 00:00:06]} 124.
Ne8 {[%clk 00:00:23]} {[%emt 00:00:05]} Bc3 {[%clk 00:00:12]} {[%emt 00:00:07]}
125. g6 {[%clk 00:00:27]} Kg8 {[%clk 00:00:15]} {[%emt 00:00:02]} 126. Nd6
{[%clk 00:00:19]} {[%emt 00:00:14]} Bd4 {[%clk 00:00:09]} {[%emt 00:00:11]} 127.
Nf5 {[%clk 00:00:19]} {[%emt 00:00:05]} Bf6 {[%clk 00:00:09]} {[%emt 00:00:04]}
128. h7+ {[%clk 00:00:22]} {[%emt 00:00:02]} Kh8 {[%clk 00:00:13]} {[%emt
00:00:02]} 129. Nd6 {[%clk 00:00:20]} {[%emt 00:00:07]} 1-0

[Event "Open NK Rapid 2025"]
[Site "Helmond, Netherlands"]
[Date "2025.05.03"]
[Round "8.23"]
[White "Van Ree, Thailo"]
[Black "Baselmans, Luuk"]
[Result "0-1"]
[TimeControl "15+5"]
[WhiteFideId "40102181"]
[BlackFideId "1051008"]
[WhiteElo "1877"]
[BlackElo "2405"]

1. d4 {[%clk 00:15:07]} {[%emt 00:00:02]} Nf6 {[%clk 00:15:08]} {[%emt
00:00:02]} 2. c4 {[%clk 00:15:10]} {[%emt 00:00:02]} e6 {[%clk 00:15:12]}
{[%emt 00:00:02]} 3. Nc3 {[%clk 00:15:13]} {[%emt 00:00:02]} Bb4 {[%clk
00:15:15]} {[%emt 00:00:04]} 4. Qc2 {[%clk 00:15:17]} O-O {[%clk 00:15:16]}
{[%emt 00:00:03]} 5. e4 {[%clk 00:15:20]} {[%emt 00:00:02]} d5 {[%clk
00:15:17]} {[%emt 00:00:04]} 6. e5 {[%clk 00:15:23]} {[%emt 00:00:02]} Ne4
{[%clk 00:15:18]} {[%emt 00:00:04]} 7. a3 {[%clk 00:15:23]} {[%emt 00:00:06]}
Bxc3+ {[%clk 00:15:10]} {[%emt 00:00:12]} 8. bxc3 {[%clk 00:15:26]} {[%emt
00:00:02]} c5 {[%clk 00:14:35]} {[%emt 00:00:40]} 9. Bb2 {[%clk 00:15:12]}
{[%emt 00:00:19]} cxd4 {[%clk 00:14:27]} {[%emt 00:00:13]} 10. cxd4 {[%clk
00:15:16]} {[%emt 00:00:02]} Qa5+ {[%clk 00:14:30]} {[%emt 00:00:01]} 11. Ke2
{[%clk 00:15:11]} {[%emt 00:00:10]} f5 {[%clk 00:13:10]} {[%emt 00:01:25]} 12.
h4 {[%clk 00:14:53]} {[%emt 00:00:23]} dxc4 {[%clk 00:13:06]} {[%emt 00:00:09]}
13. Rh3 {[%clk 00:13:50]} {[%emt 00:01:08]} Nc6 {[%clk 00:12:05]} {[%emt
00:01:06]} 14. Rd1 {[%clk 00:12:46]} {[%emt 00:01:09]} Bd7 {[%clk 00:11:24]}
{[%emt 00:00:46]} 15. f3 {[%clk 00:12:41]} {[%emt 00:00:10]} c3 {[%clk
00:11:26]} {[%emt 00:00:03]} 16. fxe4 {[%clk 00:11:59]} {[%emt 00:00:47]} cxb2
{[%clk 00:11:07]} {[%emt 00:00:24]} 17. Nf3 {[%clk 00:11:03]} {[%emt 00:01:01]}
fxe4 {[%clk 00:09:17]} {[%emt 00:01:55]} 18. Qxe4 {[%clk 00:11:05]} {[%emt
00:00:03]} Ne7 {[%clk 00:08:44]} {[%emt 00:00:37]} 19. Kf2 {[%clk 00:10:32]}
{[%emt 00:00:39]} Nd5 {[%clk 00:08:06]} {[%emt 00:00:42]} 20. Bd3 {[%clk
00:10:13]} {[%emt 00:00:25]} g6 {[%clk 00:07:01]} {[%emt 00:01:10]} 21. Rg3
{[%clk 00:10:17]} {[%emt 00:00:01]} Be8 {[%clk 00:06:39]} {[%emt 00:00:27]} 22.
Kg1 {[%clk 00:09:22]} {[%emt 00:00:59]} Nc3 {[%clk 00:05:58]} {[%emt 00:00:47]}
23. Qxb7 {[%clk 00:09:19]} {[%emt 00:00:08]} Nxd1 {[%clk 00:05:13]} {[%emt
00:00:49]} 24. Qxa8 {[%clk 00:09:21]} {[%emt 00:00:03]} Bb5 {[%clk 00:04:53]}
{[%emt 00:00:25]} 25. Qe4 {[%clk 00:09:15]} {[%emt 00:00:12]} Bxd3 {[%clk
00:04:26]} {[%emt 00:00:32]} 26. Qxd3 {[%clk 00:09:17]} {[%emt 00:00:03]} Qc3
{[%clk 00:03:38]} {[%emt 00:00:54]} 27. Rxg6+ {[%clk 00:08:46]} {[%emt
00:00:35]} Kh8 {[%clk 00:03:40]} {[%emt 00:00:03]} 0-1